[Event "European Rapid Championship 2021"]
[Site "Katowice"]
[Date "2021.12.18"]
[Round "2.22"]
[White "Wisniewski, Michal"]
[Black "Vercelli, Alessandro"]
[Result "1-0"]
[ECO "A05"]
[WhiteElo "2248"]
[BlackElo "1830"]
[Annotator "NA"]
[PlyCount "59"]
[EventDate "2021.12.18"]
[EventType "swiss"]
[EventCountry "POL"]
[SourceTitle "playchess.com"]
[Source "ChessBase"]
[SourceQuality "1"]
[TimeControl "900+10"]

1. Nf3 {[%emt 0:00:03]} Nf6 {[%emt 0:00:01]} 2. c4 {[%emt 0:00:01]} e6 {
[%emt 0:00:06]} 3. g3 {[%emt 0:00:02]} b6 {[%emt 0:00:09]} 4. Bg2 {[%emt 0:00:
02]} Bb7 {[%emt 0:00:01]} 5. O-O {[%emt 0:00:02]} Be7 {[%emt 0:00:02]} 6. b3 {
[%emt 0:00:02]} O-O {[%emt 0:00:11]} 7. Bb2 {[%emt 0:00:02]} d5 {[%emt 0:00:11]
} 8. e3 {[%emt 0:00:15]} c5 {[%emt 0:00:24]} 9. Nc3 {[%emt 0:00:03]} Nbd7 {
[%emt 0:00:02]} 10. Qe2 {[%emt 0:00:03]} Rc8 {[%emt 0:01:19]} 11. Rac1 {
[%emt 0:00:06]} Qc7 {[%emt 0:00:11]} 12. Rfd1 {[%emt 0:00:08]} Qb8 {[%emt 0:00:
30]} 13. cxd5 {[%emt 0:00:18]} exd5 {[%emt 0:01:59]} 14. d4 {[%emt 0:00:02]}
Rfd8 {[%emt 0:00:26]} 15. Na4 {[%emt 0:00:46]} Ne4 {[%emt 0:00:43]} 16. dxc5 {
[%emt 0:00:38]} bxc5 {[%emt 0:01:48]} 17. Nd2 {[%emt 0:00:06]} Ndf6 {[%emt 0:
05:04]} 18. Nxe4 {[%emt 0:01:41]} Nxe4 {[%emt 0:00:06]} 19. Qg4 {[%emt 0:00:04]
} Nf6 {[%emt 0:01:27]} 20. Bxf6 {[%emt 0:00:29]} Bxf6 {[%emt 0:00:01]} 21. Rxc5
{[%emt 0:00:15]} Rxc5 {[%emt 0:02:06]} 22. Nxc5 {[%emt 0:00:02]} Bc6 {[%emt 0:
00:17]} 23. Nd3 {[%emt 0:00:17]} Qb5 {[%emt 0:01:06]} 24. Nf4 {[%emt 0:02:21]}
g6 {[%emt 0:00:02]} 25. Qe2 {[%emt 0:00:01]} d4 {[%emt 0:00:42]} 26. Qxb5 {
[%emt 0:00:06]} Bxb5 {[%emt 0:00:01]} 27. Nd5 {[%emt 0:00:01]} Bg7 {[%emt 0:00:
32]} 28. exd4 {[%emt 0:00:02]} f6 {[%emt 0:00:03]} 29. Nc7 {[%emt 0:00:25]} Kf7
{[%emt 0:00:14]} 30. Nxb5 {[%emt 0:00:00]} 1-0

[Event "European Rapid Championship 2021"]
[Site "Katowice"]
[Date "2021.12.18"]
[Round "2.22"]
[White "Janeczko, Jakub"]
[Black "Dragnev, Valentin"]
[Result "0-1"]
[ECO "B01"]
[WhiteElo "1900"]
[BlackElo "2409"]
[Annotator "NA"]
[PlyCount "52"]
[EventDate "2021.12.18"]
[EventType "swiss"]
[EventCountry "POL"]
[SourceTitle "playchess.com"]
[Source "ChessBase"]
[SourceQuality "1"]
[TimeControl "900+10"]

1. e4 {[%emt 0:00:03]} d5 {[%emt 0:00:02]} 2. exd5 {[%emt 0:00:03]} Qxd5 {
[%emt 0:00:03]} 3. Nc3 {[%emt 0:00:02]} Qa5 {[%emt 0:00:01]} 4. d4 {[%emt 0:00:
04]} Nf6 {[%emt 0:00:02]} 5. Bd2 {[%emt 0:00:43]} Bg4 {[%emt 0:00:27]} 6. Be2 {
[%emt 0:00:22]} Bxe2 {[%emt 0:00:08]} 7. Qxe2 {[%emt 0:00:02]} Nc6 {[%emt 0:00:
54]} 8. Nf3 {[%emt 0:00:48]} O-O-O {[%emt 0:00:58]} 9. Ne4 {[%emt 0:02:04]} Qf5
{[%emt 0:01:39]} 10. Neg5 {[%emt 0:01:23]} Nd5 {[%emt 0:06:04]} 11. O-O-O {
[%emt 0:01:41]} h6 {[%emt 0:00:22]} 12. g4 {[%emt 0:00:59]} Qg6 {[%emt 0:00:27]
} 13. Ne4 {[%emt 0:02:36]} e6 {[%emt 0:00:03]} 14. Rhg1 {[%emt 0:00:11]} Be7 {
[%emt 0:00:43]} 15. g5 {[%emt 0:00:40]} hxg5 {[%emt 0:01:09]} 16. Bxg5 {
[%emt 0:00:05]} Bxg5+ {[%emt 0:00:14]} 17. Rxg5 {[%emt 0:00:33]} Qh6 {[%emt 0:
00:06]} 18. Kb1 {[%emt 0:00:02]} Nf6 {[%emt 0:00:28]} 19. Nc5 {[%emt 0:02:30]}
Nxd4 {[%emt 0:00:58]} 20. Rxd4 {[%emt 0:01:39]} Rxd4 {[%emt 0:00:10]} 21. c3 {
[%emt 0:00:01]} Rd6 {[%emt 0:00:40]} 22. Rg1 {[%emt 0:00:18]} Qh5 {[%emt 0:00:
30]} 23. Rg5 {[%emt 0:00:38]} Qh7+ {[%emt 0:00:02]} 24. Kc1 {[%emt 0:00:05]}
Rhd8 {[%emt 0:00:15]} 25. Nd4 {[%emt 0:00:16]} Qxh2 {[%emt 0:00:34]} 26. Rxg7 {
[%emt 0:00:15]} Qh6+ 0-1

[Event "European Rapid Championship 2021"]
[Site "Katowice"]
[Date "2021.12.18"]
[Round "2.23"]
[White "Blohberger, Felix"]
[Black "Vingris, Mikelis"]
[Result "1-0"]
[ECO "A04"]
[WhiteElo "2409"]
[BlackElo "1904"]
[Annotator "ChessBase"]
[PlyCount "77"]
[EventDate "2021.12.18"]
[EventType "swiss"]
[EventCountry "POL"]
[SourceTitle "playchess.com"]
[Source "ChessBase"]
[SourceQuality "1"]
[TimeControl "900+10"]

1. Nf3 {[%emt 0:00:03]} c5 {[%emt 0:00:00]} 2. g3 {[%emt 0:00:02]} Nc6 {
[%emt 0:00:06]} 3. Bg2 {[%emt 0:00:02]} e5 {[%emt 0:00:01]} 4. d3 {[%emt 0:00:
02]} d6 {[%emt 0:00:05]} 5. O-O {[%emt 0:00:06]} g6 {[%emt 0:00:02]} 6. c4 {
[%emt 0:00:18]} Bg7 {[%emt 0:00:03]} 7. Nc3 {[%emt 0:00:02]} Nge7 {[%emt 0:00:
07]} 8. Ne1 {[%emt 0:00:27]} O-O {[%emt 0:00:14]} 9. Nc2 {[%emt 0:00:06]} Be6 {
[%emt 0:00:04]} 10. Rb1 {[%emt 0:00:57]} a5 {[%emt 0:00:08]} 11. Ne3 {[%emt 0:
01:27]} h6 {[%emt 0:00:34]} 12. Ned5 {[%emt 0:00:08]} f5 {[%emt 0:00:14]} 13.
a3 {[%emt 0:00:02]} Kh7 {[%emt 0:01:17]} 14. Bd2 {[%emt 0:00:14]} Rb8 {[%emt 0:
00:43]} 15. b4 {[%emt 0:00:34]} axb4 {[%emt 0:00:08]} 16. axb4 {[%emt 0:00:02]}
Bxd5 {[%emt 0:02:08]} 17. Nxd5 {[%emt 0:00:05]} Nxd5 {[%emt 0:00:56]} 18. Bxd5
{[%emt 0:00:03]} Ne7 {[%emt 0:00:13]} 19. Bg2 {[%emt 0:00:09]} cxb4 {[%emt 0:
00:42]} 20. Rxb4 {[%emt 0:00:24]} Qc7 {[%emt 0:01:33]} 21. Rb5 {[%emt 0:02:10]}
Nc6 {[%emt 0:00:13]} 22. e3 {[%emt 0:00:03]} Na7 {[%emt 0:01:13]} 23. Rd5 {
[%emt 0:00:50]} b5 {[%emt 0:00:15]} 24. Bb4 {[%emt 0:00:10]} Rf6 {[%emt 0:00:
24]} 25. c5 {[%emt 0:00:40]} dxc5 {[%emt 0:03:07]} 26. Rxc5 {[%emt 0:00:04]}
Qf7 {[%emt 0:00:53]} 27. Rxe5 {[%emt 0:01:47]} Nc6 {[%emt 0:00:14]} 28. Bxc6 {
[%emt 0:00:06]} Rxc6 {[%emt 0:00:02]} 29. Re7 {[%emt 0:00:01]} Qf6 {[%emt 0:00:
56]} 30. Qb3 {[%emt 0:00:55]} Kh8 {[%emt 0:01:02]} 31. Rf7 {[%emt 0:00:29]} Qe5
{[%emt 0:00:34]} 32. d4 {[%emt 0:00:48]} Qe4 {[%emt 0:00:32]} 33. Re7 {[%emt 0:
02:10]} Qc2 {[%emt 0:00:46]} 34. Qf7 {[%emt 0:00:35]} Rg8 {[%emt 0:00:05]} 35.
Bc5 {[%emt 0:01:48]} Qa4 {[%emt 0:00:47]} 36. Ra7 {[%emt 0:00:57]} Qc2 {
[%emt 0:00:32]} 37. Bf8 {[%emt 0:00:28]} Qc4 {[%emt 0:00:15]} 38. Bxg7+ {
[%emt 0:00:03]} Kh7 {[%emt 0:00:01]} 39. Be5+ {[%emt 0:00:07]} 1-0

[Event "European Rapid Championship 2021"]
[Site "Katowice"]
[Date "2021.12.18"]
[Round "2.23"]
[White "Melderis, Uldis"]
[Black "Zakrzewski, Marek"]
[Result "1/2-1/2"]
[ECO "A00"]
[WhiteElo "1832"]
[BlackElo "2239"]
[Annotator "NA"]
[PlyCount "92"]
[EventDate "2021.12.18"]
[EventType "swiss"]
[EventCountry "POL"]
[SourceTitle "playchess.com"]
[Source "ChessBase"]
[SourceQuality "1"]
[TimeControl "900+10"]

1. b4 {[%emt 0:00:05]} e5 {[%emt 0:00:08]} 2. Bb2 {[%emt 0:00:01]} Bxb4 {
[%emt 0:00:02]} 3. Bxe5 {[%emt 0:00:01]} Nf6 {[%emt 0:00:02]} 4. Nf3 {[%emt 0:
00:01]} d5 {[%emt 0:00:29]} 5. e3 {[%emt 0:00:03]} Nc6 {[%emt 0:00:58]} 6. Bb2
{[%emt 0:00:02]} Bg4 {[%emt 0:00:05]} 7. Be2 {[%emt 0:00:01]} Qd7 {[%emt 0:00:
36]} 8. O-O {[%emt 0:00:04]} O-O-O {[%emt 0:00:06]} 9. d3 {[%emt 0:00:02]} h5 {
[%emt 0:00:39]} 10. Nbd2 {[%emt 0:00:04]} Kb8 {[%emt 0:00:29]} 11. Ne5 {
[%emt 0:00:14]} Nxe5 {[%emt 0:00:14]} 12. Bxe5 {[%emt 0:00:01]} Qe6 {[%emt 0:
00:21]} 13. d4 {[%emt 0:00:50]} Nd7 {[%emt 0:00:43]} 14. Bxg4 {[%emt 0:00:25]}
hxg4 {[%emt 0:00:03]} 15. Bg3 {[%emt 0:00:04]} Bd6 {[%emt 0:01:34]} 16. Bxd6 {
[%emt 0:00:23]} Qxd6 {[%emt 0:00:01]} 17. f4 {[%emt 0:00:09]} Qh6 {[%emt 0:03:
18]} 18. Qxg4 {[%emt 0:00:35]} Qxh2+ {[%emt 0:00:02]} 19. Kf2 {[%emt 0:00:02]}
Nf6 {[%emt 0:00:02]} 20. Qg3 {[%emt 0:00:27]} Qh5 {[%emt 0:00:03]} 21. Rg1 {
[%emt 0:01:46]} Ng4+ {[%emt 0:00:25]} 22. Kf1 {[%emt 0:00:14]} Rde8 {[%emt 0:
00:50]} 23. Re1 {[%emt 0:00:04]} Nxe3+ {[%emt 0:00:29]} 24. Rxe3 {[%emt 0:00:
40]} Qd1+ {[%emt 0:00:02]} 25. Qe1 {[%emt 0:00:21]} Qxe1+ {[%emt 0:00:05]} 26.
Rxe1 {[%emt 0:00:03]} Rd8 {[%emt 0:00:09]} 27. Re7 {[%emt 0:00:08]} Rhf8 {
[%emt 0:00:01]} 28. Kf2 {[%emt 0:00:08]} a5 {[%emt 0:00:21]} 29. Rh1 {[%emt 0:
00:09]} Rd6 {[%emt 0:00:06]} 30. Rh7 {[%emt 0:00:21]} Rc6 {[%emt 0:00:06]} 31.
Rxg7 {[%emt 0:00:06]} Rxc2 {[%emt 0:00:02]} 32. Ke2 {[%emt 0:00:22]} Rxa2 {
[%emt 0:00:06]} 33. Rgxf7 {[%emt 0:00:04]} Rc8 {[%emt 0:00:01]} 34. g4 {
[%emt 0:00:05]} a4 {[%emt 0:00:11]} 35. g5 {[%emt 0:00:03]} a3 {[%emt 0:01:39]}
36. g6 {[%emt 0:00:22]} Rb2 {[%emt 0:00:17]} 37. g7 {[%emt 0:03:10]} a2 {
[%emt 0:00:01]} 38. Rf8 {[%emt 0:00:28]} a1=Q {[%emt 0:00:22]} 39. Rxc8+ {
[%emt 0:00:13]} Ka7 {[%emt 0:00:01]} 40. Ra8+ {[%emt 0:02:20]} Kxa8 {[%emt 0:
00:03]} 41. g8=Q+ {[%emt 0:00:05]} Ka7 {[%emt 0:00:02]} 42. Qxd5 {[%emt 0:01:
07]} Qa6+ {[%emt 0:00:14]} 43. Ke1 {[%emt 0:03:00]} Qa1+ {[%emt 0:00:17]} 44.
Ke2 {[%emt 0:00:05]} Qa6+ {[%emt 0:00:04]} 45. Ke1 {[%emt 0:00:41]} Qa1+ {
[%emt 0:00:02]} 46. Ke2 {[%emt 0:00:03]} Qa6+ {[%emt 0:00:02]} 1/2-1/2

[Event "European Rapid Championship 2021"]
[Site "Katowice"]
[Date "2021.12.18"]
[Round "2.24"]
[White "Skrzyczek, Tomasz"]
[Black "Diermair, Andreas"]
[Result "0-1"]
[ECO "B13"]
[WhiteElo "1891"]
[BlackElo "2408"]
[Annotator "ChessBase"]
[PlyCount "116"]
[EventDate "2021.12.18"]
[EventType "swiss"]
[EventCountry "POL"]
[SourceTitle "playchess.com"]
[Source "ChessBase"]
[SourceQuality "1"]
[TimeControl "900+10"]

1. e4 {[%emt 0:00:03]} c6 {[%emt 0:00:02]} 2. d4 {[%emt 0:00:04]} d5 {[%emt 0:
00:01]} 3. exd5 {[%emt 0:00:01]} cxd5 {[%emt 0:00:02]} 4. Bd3 {[%emt 0:00:01]}
Nf6 {[%emt 0:00:24]} 5. c3 {[%emt 0:00:17]} Bg4 {[%emt 0:00:03]} 6. Qb3 {
[%emt 0:00:13]} Qc7 {[%emt 0:00:06]} 7. Ne2 {[%emt 0:01:27]} Nc6 {[%emt 0:00:
13]} 8. Bf4 {[%emt 0:00:37]} Qd7 {[%emt 0:00:08]} 9. Nd2 {[%emt 0:00:44]} e6 {
[%emt 0:00:23]} 10. O-O {[%emt 0:00:44]} Be7 {[%emt 0:00:58]} 11. Rae1 {
[%emt 0:00:31]} Rc8 {[%emt 0:00:44]} 12. Ng3 {[%emt 0:00:46]} Nh5 {[%emt 0:00:
34]} 13. Nxh5 {[%emt 0:00:26]} Bxh5 {[%emt 0:00:02]} 14. Re3 {[%emt 0:00:17]}
Bg6 {[%emt 0:00:32]} 15. Nf3 {[%emt 0:01:07]} Na5 {[%emt 0:01:50]} 16. Qc2 {
[%emt 0:03:17]} Nc4 {[%emt 0:00:31]} 17. Re2 {[%emt 0:00:25]} Bd6 {[%emt 0:02:
57]} 18. Bxd6 {[%emt 0:00:34]} Qxd6 {[%emt 0:00:03]} 19. Ne5 {[%emt 0:00:24]}
Nxe5 {[%emt 0:01:33]} 20. Rxe5 {[%emt 0:00:05]} Qb6 {[%emt 0:01:09]} 21. Qa4+ {
[%emt 0:01:34]} Kf8 {[%emt 0:00:03]} 22. Qa3+ {[%emt 0:00:01]} Kg8 {[%emt 0:00:
01]} 23. Be2 {[%emt 0:00:51]} h6 {[%emt 0:00:58]} 24. f4 {[%emt 0:00:35]} Kh7 {
[%emt 0:00:19]} 25. Bh5 {[%emt 0:00:39]} Bxh5 {[%emt 0:00:27]} 26. Rxh5 {
[%emt 0:00:01]} f6 {[%emt 0:00:10]} 27. Rf3 {[%emt 0:00:52]} Rhe8 {[%emt 0:00:
17]} 28. Qb3 {[%emt 0:00:31]} Qxb3 {[%emt 0:00:23]} 29. axb3 {[%emt 0:00:01]}
a5 {[%emt 0:00:00]} 30. Re3 {[%emt 0:01:11]} Kg6 {[%emt 0:00:03]} 31. g4 {
[%emt 0:00:10]} Kf7 {[%emt 0:00:01]} 32. Rhh3 {[%emt 0:00:51]} Rc6 {[%emt 0:00:
10]} 33. Re2 {[%emt 0:00:12]} Rd8 {[%emt 0:01:05]} 34. Rhe3 {[%emt 0:00:08]}
Rb6 {[%emt 0:01:36]} 35. f5 {[%emt 0:00:04]} exf5 {[%emt 0:00:12]} 36. Re7+ {
[%emt 0:00:40]} Kg6 {[%emt 0:00:16]} 37. gxf5+ {[%emt 0:00:01]} Kxf5 {[%emt 0:
00:01]} 38. Rxg7 {[%emt 0:00:04]} Rxb3 {[%emt 0:00:35]} 39. Kf2 {[%emt 0:00:11]
} a4 {[%emt 0:00:19]} 40. Rg3 {[%emt 0:00:20]} a3 {[%emt 0:00:24]} 41. bxa3 {
[%emt 0:00:03]} Rxa3 {[%emt 0:00:01]} 42. Ree3 {[%emt 0:00:14]} Ra2+ {[%emt 0:
00:24]} 43. Kg1 {[%emt 0:00:22]} Rda8 {[%emt 0:00:28]} 44. Rgf3+ {[%emt 0:00:
15]} Kg6 {[%emt 0:00:07]} 45. Rg3+ {[%emt 0:00:16]} Kf7 {[%emt 0:00:02]} 46.
Rh3 {[%emt 0:00:21]} Rc2 {[%emt 0:00:11]} 47. Ref3 {[%emt 0:00:08]} Ra1+ {
[%emt 0:00:15]} 48. Rf1 {[%emt 0:00:01]} Rxf1+ {[%emt 0:00:23]} 49. Kxf1 {
[%emt 0:00:01]} Kg6 {[%emt 0:00:16]} 50. Rg3+ {[%emt 0:00:10]} Kf5 {[%emt 0:00:
03]} 51. Rh3 {[%emt 0:00:01]} b5 {[%emt 0:00:20]} 52. Rh5+ {[%emt 0:00:17]} Ke4
{[%emt 0:00:20]} 53. Rh4+ {[%emt 0:00:26]} Kd3 {[%emt 0:00:12]} 54. Rh3+ {
[%emt 0:00:02]} Kc4 {[%emt 0:00:03]} 55. Rxh6 {[%emt 0:00:03]} Kxc3 {[%emt 0:
00:11]} 56. h4 {[%emt 0:00:00]} b4 {[%emt 0:00:11]} 57. Rxf6 {[%emt 0:00:04]}
b3 {[%emt 0:00:12]} 58. h5 {[%emt 0:00:43]} b2 {[%emt 0:00:06]} 0-1

[Event "European Rapid Championship 2021"]
[Site "Katowice"]
[Date "2021.12.18"]
[Round "2.25"]
[White "Gretarsson, Helgi Ass"]
[Black "Czarnecka, Lidia"]
[Result "1-0"]
[ECO "D10"]
[WhiteElo "2476"]
[BlackElo "1900"]
[Annotator "ChessBase"]
[PlyCount "93"]
[EventDate "2021.12.18"]
[EventType "swiss"]
[EventCountry "POL"]
[SourceTitle "playchess.com"]
[Source "ChessBase"]
[SourceQuality "1"]
[TimeControl "900+10"]

1. d4 {[%emt 0:00:18]} d5 {[%emt 0:00:03]} 2. c4 {[%emt 0:00:02]} c6 {[%emt 0:
00:01]} 3. Nc3 {[%emt 0:00:04]} Nf6 {[%emt 0:00:03]} 4. e3 {[%emt 0:00:06]} Bg4
{[%emt 0:00:13]} 5. Qb3 {[%emt 0:00:27]} Qb6 {[%emt 0:00:21]} 6. c5 {[%emt 0:
01:06]} Qxb3 {[%emt 0:00:30]} 7. axb3 {[%emt 0:00:01]} Nbd7 {[%emt 0:00:01]} 8.
b4 {[%emt 0:00:02]} e5 {[%emt 0:00:09]} 9. b5 {[%emt 0:00:03]} exd4 {[%emt 0:
00:51]} 10. exd4 {[%emt 0:00:02]} Be7 {[%emt 0:00:08]} 11. bxc6 {[%emt 0:01:55]
} bxc6 {[%emt 0:00:03]} 12. Ba6 {[%emt 0:00:01]} Rb8 {[%emt 0:00:41]} 13. f3 {
[%emt 0:00:03]} Be6 {[%emt 0:00:24]} 14. Nge2 {[%emt 0:00:52]} O-O {[%emt 0:00:
05]} 15. Ra2 {[%emt 0:00:52]} Bf5 {[%emt 0:00:39]} 16. Bf4 {[%emt 0:00:37]} Rb4
{[%emt 0:00:10]} 17. Kd2 {[%emt 0:00:39]} Bd8 {[%emt 0:00:41]} 18. g4 {[%emt 0:
00:37]} Bg6 {[%emt 0:00:06]} 19. Bd6 {[%emt 0:02:37]} Re8 {[%emt 0:00:15]} 20.
h4 {[%emt 0:00:01]} h6 {[%emt 0:01:31]} 21. h5 {[%emt 0:00:04]} Bh7 {[%emt 0:
00:01]} 22. Nd1 {[%emt 0:00:44]} Bb1 {[%emt 0:00:47]} 23. Ra1 {[%emt 0:00:04]}
Bh7 {[%emt 0:00:01]} 24. Kc3 {[%emt 0:00:03]} Rb8 {[%emt 0:00:45]} 25. Bxb8 {
[%emt 0:00:03]} Nxb8 {[%emt 0:00:02]} 26. Bd3 {[%emt 0:00:01]} Bxd3 {[%emt 0:
00:03]} 27. Kxd3 {[%emt 0:00:01]} a5 {[%emt 0:00:01]} 28. Ne3 {[%emt 0:00:22]}
Na6 {[%emt 0:00:02]} 29. Nc2 {[%emt 0:00:01]} Nh7 {[%emt 0:00:25]} 30. Ng3 {
[%emt 0:00:25]} Ng5 {[%emt 0:00:13]} 31. Rhe1 {[%emt 0:00:03]} Ne6 {[%emt 0:00:
25]} 32. Nf5 {[%emt 0:00:38]} Bc7 {[%emt 0:00:16]} 33. Kc3 {[%emt 0:00:03]} Kf8
{[%emt 0:00:12]} 34. b4 {[%emt 0:00:48]} Nxb4 {[%emt 0:00:08]} 35. Nxb4 {
[%emt 0:00:01]} axb4+ {[%emt 0:00:01]} 36. Kxb4 {[%emt 0:00:01]} Bf4 {[%emt 0:
00:26]} 37. Kc3 {[%emt 0:00:10]} Rd8 {[%emt 0:00:58]} 38. Ra7 {[%emt 0:00:17]}
Nc7 {[%emt 0:00:03]} 39. Kd3 {[%emt 0:00:18]} Nb5 {[%emt 0:00:13]} 40. Rb7 {
[%emt 0:01:32]} Ra8 {[%emt 0:00:06]} 41. Ree7 {[%emt 0:00:02]} Ra3+ {[%emt 0:
00:15]} 42. Kc2 {[%emt 0:00:01]} Rc3+ {[%emt 0:01:17]} 43. Kb1 {[%emt 0:00:07]}
Rb3+ {[%emt 0:02:37]} 44. Ka2 {[%emt 0:00:03]} Ra3+ {[%emt 0:00:13]} 45. Kb2 {
[%emt 0:00:01]} Rxf3 {[%emt 0:00:06]} 46. Rxf7+ {[%emt 0:00:04]} Ke8 {[%emt 0:
00:02]} 47. Nxg7+ {[%emt 0:00:03]} 1-0

[Event "European Rapid Championship 2021"]
[Site "Katowice"]
[Date "2021.12.18"]
[Round "2.25"]
[White "Rudecki, Bartosz"]
[Black "Molenda, Marcin"]
[Result "1-0"]
[ECO "B12"]
[WhiteElo "1820"]
[BlackElo "2365"]
[Annotator "NA"]
[PlyCount "51"]
[EventDate "2021.12.18"]
[EventType "swiss"]
[EventCountry "POL"]
[SourceTitle "playchess.com"]
[Source "ChessBase"]
[SourceQuality "1"]
[TimeControl "900+10"]

1. e4 c6 {[%emt 0:00:19]} 2. d4 {[%emt 0:00:14]} d5 {[%emt 0:00:02]} 3. f3 {
[%emt 0:00:03]} g6 {[%emt 0:00:07]} 4. Be3 {[%emt 0:00:09]} Bg7 {[%emt 0:01:00]
} 5. Nc3 {[%emt 0:00:12]} dxe4 {[%emt 0:00:08]} 6. fxe4 {[%emt 0:00:03]} Nf6 {
[%emt 0:00:02]} 7. Nf3 {[%emt 0:00:12]} O-O {[%emt 0:00:17]} 8. h3 {[%emt 0:00:
15]} Qb6 {[%emt 0:04:02]} 9. Qd2 {[%emt 0:01:22]} Qxb2 {[%emt 0:00:52]} 10. Rb1
{[%emt 0:00:05]} Qa3 {[%emt 0:00:02]} 11. Bd3 {[%emt 0:06:41]} Nbd7 {[%emt 0:
02:18]} 12. e5 {[%emt 0:01:38]} Nd5 {[%emt 0:00:54]} 13. Nxd5 {[%emt 0:00:19]}
cxd5 {[%emt 0:00:04]} 14. Rb3 {[%emt 0:00:32]} Qxa2 {[%emt 0:01:06]} 15. O-O {
[%emt 0:01:21]} Nb6 {[%emt 0:00:47]} 16. Qc3 {[%emt 0:00:53]} Na4 {[%emt 0:03:
51]} 17. Qb4 {[%emt 0:00:05]} a5 {[%emt 0:00:18]} 18. Qxe7 {[%emt 0:00:02]} b5
{[%emt 0:00:32]} 19. Bxb5 {[%emt 0:00:53]} Ba6 {[%emt 0:00:17]} 20. Bxa6 {
[%emt 0:01:13]} Rxa6 {[%emt 0:00:02]} 21. Ng5 {[%emt 0:00:10]} Raa8 {[%emt 0:
01:19]} 22. Rxf7 {[%emt 0:00:15]} Rxf7 {[%emt 0:00:12]} 23. Qxf7+ {[%emt 0:00:
02]} Kh8 {[%emt 0:00:02]} 24. Rb7 {[%emt 0:00:16]} Rg8 {[%emt 0:00:06]} 25. Ne6
{[%emt 0:00:04]} Qa3 26. Bh6 {[%emt 0:00:11]} 1-0

[Event "European Rapid Championship 2021"]
[Site "Katowice"]
[Date "2021.12.18"]
[Round "2.26"]
[White "Godzwon, Iwo"]
[Black "Smieja, Adam"]
[Result "1-0"]
[ECO "B23"]
[WhiteElo "2352"]
[BlackElo "1818"]
[Annotator "NA"]
[PlyCount "39"]
[EventDate "2021.12.18"]
[EventType "swiss"]
[EventCountry "POL"]
[SourceTitle "playchess.com"]
[Source "ChessBase"]
[SourceQuality "1"]
[TimeControl "900+10"]

1. e4 {[%emt 0:00:01]} c5 {[%emt 0:00:06]} 2. Nc3 {[%emt 0:00:06]} Nc6 {
[%emt 0:00:04]} 3. Nge2 {[%emt 0:00:01]} d6 {[%emt 0:00:18]} 4. d4 {[%emt 0:00:
09]} cxd4 {[%emt 0:00:03]} 5. Nxd4 {[%emt 0:00:02]} e5 {[%emt 0:00:14]} 6. Nde2
{[%emt 0:00:53]} f5 {[%emt 0:00:46]} 7. exf5 {[%emt 0:01:32]} Bxf5 {[%emt 0:00:
22]} 8. Ng3 {[%emt 0:00:02]} Be6 {[%emt 0:01:00]} 9. Bd3 {[%emt 0:00:05]} Nf6 {
[%emt 0:01:47]} 10. O-O {[%emt 0:00:10]} Be7 {[%emt 0:00:34]} 11. Bf5 {[%emt 0:
00:23]} Qd7 {[%emt 0:00:14]} 12. Bxe6 {[%emt 0:00:05]} Qxe6 {[%emt 0:00:06]}
13. Bg5 {[%emt 0:00:03]} O-O-O {[%emt 0:02:15]} 14. f4 {[%emt 0:01:20]} h6 {
[%emt 0:01:53]} 15. f5 {[%emt 0:00:37]} Qc4 {[%emt 0:00:36]} 16. Bxf6 {[%emt 0:
00:11]} Bxf6 {[%emt 0:00:16]} 17. Qd5 {[%emt 0:01:01]} Qa6 {[%emt 0:02:54]} 18.
Nge4 {[%emt 0:02:30]} Ne7 {[%emt 0:00:57]} 19. Qe6+ {[%emt 0:00:07]} Kb8 {
[%emt 0:00:01]} 20. Nxf6 {[%emt 0:00:07]} 1-0

[Event "European Rapid Championship 2021"]
[Site "Katowice"]
[Date "2021.12.18"]
[Round "2.26"]
[White "Jablonski, Marcin"]
[Black "Kjartansson, Gudmundur"]
[Result "0-1"]
[ECO "A47"]
[WhiteElo "1889"]
[BlackElo "2402"]
[Annotator "ChessBase"]
[PlyCount "112"]
[EventDate "2021.12.18"]
[EventType "swiss"]
[EventCountry "POL"]
[SourceTitle "playchess.com"]
[Source "ChessBase"]
[SourceQuality "1"]
[TimeControl "900+10"]

1. d4 {[%emt 0:00:01]} Nf6 {[%emt 0:00:04]} 2. Nf3 {[%emt 0:00:03]} b6 {
[%emt 0:00:01]} 3. Bg5 {[%emt 0:00:08]} e6 {[%emt 0:00:09]} 4. e4 {[%emt 0:00:
07]} h6 {[%emt 0:00:01]} 5. Bxf6 {[%emt 0:00:02]} Qxf6 {[%emt 0:00:02]} 6. Bd3
{[%emt 0:00:10]} Bb7 {[%emt 0:00:02]} 7. Nbd2 {[%emt 0:00:06]} d6 {[%emt 0:00:
08]} 8. Qe2 {[%emt 0:00:02]} g5 {[%emt 0:01:00]} 9. e5 {[%emt 0:00:05]} Qe7 {
[%emt 0:00:20]} 10. Ne4 {[%emt 0:00:07]} Bxe4 {[%emt 0:00:13]} 11. Bxe4 {
[%emt 0:01:08]} d5 {[%emt 0:00:03]} 12. Bd3 {[%emt 0:00:02]} g4 {[%emt 0:01:18]
} 13. Nd2 {[%emt 0:00:06]} h5 {[%emt 0:00:37]} 14. O-O {[%emt 0:00:07]} Bh6 {
[%emt 0:01:36]} 15. a3 {[%emt 0:02:04]} h4 {[%emt 0:00:53]} 16. c4 {[%emt 0:00:
20]} Qg5 {[%emt 0:02:20]} 17. Rad1 {[%emt 0:01:02]} Nd7 {[%emt 0:02:10]} 18.
cxd5 {[%emt 0:00:09]} exd5 {[%emt 0:00:01]} 19. e6 {[%emt 0:00:49]} Nf6 {
[%emt 0:00:04]} 20. Bb5+ {[%emt 0:00:20]} Kf8 {[%emt 0:00:23]} 21. Bc6 {
[%emt 0:00:08]} Rb8 {[%emt 0:00:15]} 22. e7+ {[%emt 0:00:08]} Kg7 {[%emt 0:00:
06]} 23. Qe5 {[%emt 0:00:02]} Qxe5 {[%emt 0:02:45]} 24. dxe5 {[%emt 0:00:02]}
Nh5 {[%emt 0:00:01]} 25. Nb3 {[%emt 0:01:24]} Nf4 {[%emt 0:01:45]} 26. g3 {
[%emt 0:00:19]} Ng6 {[%emt 0:00:18]} 27. e8=Q {[%emt 0:00:24]} Rhxe8 {[%emt 0:
00:02]} 28. Bxe8 {[%emt 0:00:04]} Rxe8 {[%emt 0:00:00]} 29. Rxd5 {[%emt 0:00:
45]} Nxe5 {[%emt 0:00:02]} 30. gxh4 {[%emt 0:00:55]} Nf3+ {[%emt 0:00:27]} 31.
Kg2 {[%emt 0:00:29]} Bf4 {[%emt 0:00:39]} 32. Nd4 {[%emt 0:00:44]} Nxh4+ {
[%emt 0:00:05]} 33. Kh1 {[%emt 0:00:16]} Kg6 {[%emt 0:01:02]} 34. b4 {[%emt 0:
00:57]} f5 {[%emt 0:01:05]} 35. f3 {[%emt 0:03:52]} g3 {[%emt 0:00:02]} 36.
hxg3 {[%emt 0:00:05]} Bxg3 {[%emt 0:00:01]} 37. f4 {[%emt 0:00:46]} Kf6 {
[%emt 0:00:08]} 38. Nb5 {[%emt 0:01:53]} Re3 {[%emt 0:00:33]} 39. Nxc7 {
[%emt 0:00:19]} Rxa3 {[%emt 0:00:01]} 40. Rd6+ {[%emt 0:00:22]} Ke7 {[%emt 0:
00:01]} 41. Rh6 {[%emt 0:00:07]} Ra2 {[%emt 0:00:03]} 42. Nd5+ Kf7 43. Ne3 {
[%emt 0:00:11]} Re2 {[%emt 0:00:11]} 44. Rxh4 {[%emt 0:00:04]} Bxh4 {[%emt 0:
00:03]} 45. Nxf5 {[%emt 0:00:02]} Bf6 {[%emt 0:00:04]} 46. Nd6+ {[%emt 0:00:03]
} Ke6 {[%emt 0:00:04]} 47. Nb5 {[%emt 0:00:08]} a6 {[%emt 0:00:08]} 48. Nc7+ {
[%emt 0:00:04]} Kf5 {[%emt 0:00:01]} 49. Nxa6 {[%emt 0:00:03]} Kg4 {[%emt 0:00:
03]} 50. Nc7 {[%emt 0:00:09]} Kh3 {[%emt 0:00:15]} 51. Rf3+ {[%emt 0:00:11]}
Kg4 {[%emt 0:00:01]} 52. Rf1 {[%emt 0:00:04]} Kg3 {[%emt 0:00:01]} 53. Rd1 {
[%emt 0:00:12]} Bd4 {[%emt 0:00:06]} 54. Rd3+ {[%emt 0:00:01]} Be3 {[%emt 0:00:
01]} 55. Rxe3+ {[%emt 0:00:04]} Rxe3 {[%emt 0:00:01]} 56. Nd5 {[%emt 0:00:02]}
Re1# {[%emt 0:00:01]} 0-1